[Event "*** Titled Tuesday Blitz"]
[Site "Chess.com"]
[Date "2021.02.09"]
[Round "11"]
[White "ChelsieMonica"]
[Black "MasterMK73"]
[Result "0-1"]
[WhiteElo "2321"]
[BlackElo "2240"]
[TimeControl "180+1"]
[EndTime "12:08:09 PST"]
[Termination "MasterMK73 won by resignation"]

1. g3 {[%clk 0:03:00.9]} 1... d5 {[%clk 0:02:58.3]} 2. Bg2 {[%clk 0:03:01.8]}
2... c5 {[%clk 0:02:58]} 3. c4 {[%clk 0:03:02]} 3... d4 {[%clk 0:02:57.6]} 4.
Nf3 {[%clk 0:03:01.9]} 4... Nc6 {[%clk 0:02:55.7]} 5. O-O {[%clk 0:03:02.3]}
5... e5 {[%clk 0:02:54.7]} 6. d3 {[%clk 0:03:02]} 6... Bd6 {[%clk 0:02:48.9]} 7.
Nbd2 {[%clk 0:03:00.4]} 7... Nge7 {[%clk 0:02:48.8]} 8. e4 {[%clk 0:02:59.5]}
8... O-O {[%clk 0:02:48.6]} 9. Nh4 {[%clk 0:02:58.2]} 9... g6 {[%clk 0:02:28.9]}
10. f4 {[%clk 0:02:49.8]} 10... f5 {[%clk 0:02:23.3]} 11. exf5 {[%clk
0:02:40.3]} 11... Nxf5 {[%clk 0:02:22.3]} 12. Nxf5 {[%clk 0:02:38.4]} 12... Bxf5
{[%clk 0:02:22]} 13. Ne4 {[%clk 0:02:37.2]} 13... exf4 {[%clk 0:02:15.2]} 14.
Bxf4 {[%clk 0:02:28.2]} 14... Bxf4 {[%clk 0:02:14.2]} 15. Rxf4 {[%clk
0:02:29.1]} 15... Qb6 {[%clk 0:01:58.6]} 16. Qd2 {[%clk 0:02:21.4]} 16... Ne5
{[%clk 0:01:53.5]} 17. Raf1 {[%clk 0:02:16.9]} 17... Ng4 {[%clk 0:01:44.2]} 18.
Ng5 {[%clk 0:01:31.9]} 18... Ne3 {[%clk 0:01:38.1]} 19. Bd5+ {[%clk 0:01:30.7]}
19... Kg7 {[%clk 0:01:13.8]} 20. Rxf5 {[%clk 0:01:18.5]} 20... Rxf5 {[%clk
0:01:03.7]} 21. Rxf5 {[%clk 0:01:14.2]} 21... gxf5 {[%clk 0:00:51.3]} 22. Ne6+
{[%clk 0:01:03.4]} 22... Kf6 {[%clk 0:00:50.3]} 23. Nf4 {[%clk 0:01:03.7]} 23...
Re8 {[%clk 0:00:42.8]} 24. Qe2 {[%clk 0:01:02.2]} 24... Qb4 {[%clk 0:00:32.3]}
25. a3 {[%clk 0:01:00.9]} 25... Qb3 {[%clk 0:00:32.1]} 26. Bf3 {[%clk 0:00:56]}
26... Qc2 {[%clk 0:00:27.6]} 27. Qe1 {[%clk 0:00:54]} 27... Ng4 {[%clk
0:00:17.2]} 28. Nh5+ {[%clk 0:00:45.8]} 28... Kf7 {[%clk 0:00:14.1]} 29. Bd5+
{[%clk 0:00:27.5]} 29... Kf8 {[%clk 0:00:13]} 30. Be6 {[%clk 0:00:24.8]} 30...
Qxd3 {[%clk 0:00:11.2]} 31. Nf4 {[%clk 0:00:23.8]} 31... Qe3+ {[%clk 0:00:10.8]}
32. Qxe3 {[%clk 0:00:24.1]} 32... dxe3 {[%clk 0:00:11]} 33. Bxf5 {[%clk
0:00:23.2]} 33... e2 {[%clk 0:00:10]} 34. Nxe2 {[%clk 0:00:23.3]} 34... Rxe2
{[%clk 0:00:09]} 35. Bxg4 {[%clk 0:00:23.7]} 35... Rxb2 {[%clk 0:00:09.5]} 36.
Bf3 {[%clk 0:00:24.3]} 36... Kf7 {[%clk 0:00:08.3]} 37. Bd5+ {[%clk 0:00:23.7]}
37... Kf6 {[%clk 0:00:08.4]} 38. a4 {[%clk 0:00:23]} 38... Ke5 {[%clk
0:00:08.3]} 39. a5 {[%clk 0:00:23.4]} 39... b6 {[%clk 0:00:07.9]} 40. axb6
{[%clk 0:00:21.9]} 40... axb6 {[%clk 0:00:08.1]} 41. Bc6 {[%clk 0:00:22.3]}
41... Rb4 {[%clk 0:00:07.6]} 42. Bb5 {[%clk 0:00:20.3]} 42... Kd4 {[%clk
0:00:07.6]} 43. Kg2 {[%clk 0:00:21.2]} 43... Rxb5 {[%clk 0:00:06.8]} 44. cxb5
{[%clk 0:00:21]} 44... c4 {[%clk 0:00:07.3]} 45. Kf2 {[%clk 0:00:20.4]} 45...
Kd3 {[%clk 0:00:06.9]} 46. h4 {[%clk 0:00:20.2]} 46... c3 {[%clk 0:00:06.7]} 47.
g4 {[%clk 0:00:21.1]} 47... c2 {[%clk 0:00:06.6]} 48. h5 {[%clk 0:00:22]} 48...
c1=Q {[%clk 0:00:06]} 49. Kg3 {[%clk 0:00:22.9]} 49... Qg5 {[%clk 0:00:05.8]}
50. h6 {[%clk 0:00:20.1]} 50... Ke4 {[%clk 0:00:05.7]} 0-1

[Event "*** Titled Tuesday Blitz"]
[Site "Chess.com"]
[Date "2021.02.09"]
[Round "11"]
[White "Khnykin_Nikolay"]
[Black "LamaChampetre"]
[Result "1-0"]
[WhiteElo "2083"]
[BlackElo "2219"]
[TimeControl "180+1"]
[EndTime "12:08:09 PST"]
[Termination "Khnykin_Nikolay won by checkmate"]

1. e4 {[%clk 0:03:00.1]} 1... c5 {[%clk 0:02:58.8]} 2. d4 {[%clk 0:02:59.3]}
2... cxd4 {[%clk 0:02:58.7]} 3. c3 {[%clk 0:02:57.7]} 3... g6 {[%clk 0:02:57.7]}
4. cxd4 {[%clk 0:02:57]} 4... d5 {[%clk 0:02:55.9]} 5. exd5 {[%clk 0:02:55.6]}
5... Bg7 {[%clk 0:02:54.9]} 6. Nc3 {[%clk 0:02:52.4]} 6... Nf6 {[%clk
0:02:54.7]} 7. Bc4 {[%clk 0:02:51.7]} 7... O-O {[%clk 0:02:54.4]} 8. Nf3 {[%clk
0:02:51.2]} 8... a6 {[%clk 0:02:54.6]} 9. O-O {[%clk 0:02:50.7]} 9... b5 {[%clk
0:02:54.3]} 10. Bb3 {[%clk 0:02:50.3]} 10... Bb7 {[%clk 0:02:54.6]} 11. Re1
{[%clk 0:02:34.4]} 11... b4 {[%clk 0:02:39.1]} 12. Na4 {[%clk 0:02:31.6]} 12...
Bxd5 {[%clk 0:02:38.9]} 13. Bxd5 {[%clk 0:02:29.9]} 13... Nxd5 {[%clk
0:02:37.1]} 14. Bg5 {[%clk 0:02:19.6]} 14... Nd7 {[%clk 0:02:26.4]} 15. Qb3
{[%clk 0:02:13.8]} 15... N7f6 {[%clk 0:02:15.6]} 16. Nc5 {[%clk 0:02:03.4]}
16... h6 {[%clk 0:02:09]} 17. Bxf6 {[%clk 0:02:01.6]} 17... Bxf6 {[%clk
0:02:06.7]} 18. Rad1 {[%clk 0:01:55]} 18... a5 {[%clk 0:01:59]} 19. Ne5 {[%clk
0:01:53.1]} 19... Rc8 {[%clk 0:01:37]} 20. Ned7 {[%clk 0:01:47.3]} 20... Re8
{[%clk 0:01:28]} 21. Qxd5 {[%clk 0:01:45.2]} 21... Bg7 {[%clk 0:01:08.6]} 22.
Re3 {[%clk 0:01:32.9]} 22... e6 {[%clk 0:00:56.7]} 23. Qf3 {[%clk 0:01:14.5]}
23... Rc7 {[%clk 0:00:16.7]} 24. Ne5 {[%clk 0:01:10.4]} 24... Qd6 {[%clk
0:00:07.1]} 25. Ne4 {[%clk 0:01:06.9]} 25... Qe7 {[%clk 0:00:06.8]} 26. Qf4
{[%clk 0:00:50.9]} 26... Rd8 {[%clk 0:00:05.6]} 27. Rf3 {[%clk 0:00:34.2]} 27...
g5 {[%clk 0:00:05.6]} 28. Nf6+ {[%clk 0:00:10.8]} 28... Kf8 {[%clk 0:00:04.9]}
29. Nh7+ {[%clk 0:00:09.8]} 29... Kg8 {[%clk 0:00:04.6]} 30. Nf6+ {[%clk
0:00:09.7]} 30... Kf8 {[%clk 0:00:04.8]} 31. Nh7+ {[%clk 0:00:08.7]} 31... Kg8
{[%clk 0:00:05]} 32. Qe4 {[%clk 0:00:08.6]} 32... f6 {[%clk 0:00:04.4]} 33. Ng6
{[%clk 0:00:08.1]} 33... Kxh7 {[%clk 0:00:04]} 34. Nxe7+ {[%clk 0:00:08]} 34...
Kh8 {[%clk 0:00:04.9]} 35. Ng6+ {[%clk 0:00:07.4]} 35... Kg8 {[%clk 0:00:05.1]}
36. Qxe6+ {[%clk 0:00:07.6]} 36... Rf7 {[%clk 0:00:04.4]} 37. Ne7+ {[%clk
0:00:07.3]} 37... Kf8 {[%clk 0:00:03.6]} 38. Re1 {[%clk 0:00:07.5]} 38... Re8
{[%clk 0:00:04.2]} 39. Ng6+ {[%clk 0:00:06.1]} 39... Kg8 {[%clk 0:00:04.2]} 40.
Qxe8+ {[%clk 0:00:06.4]} 40... Kh7 {[%clk 0:00:05.1]} 41. Qxf7 {[%clk
0:00:06.4]} 41... h5 {[%clk 0:00:05.1]} 42. Qe8 {[%clk 0:00:05.8]} 42... Kh6
{[%clk 0:00:05]} 43. Rxf6 {[%clk 0:00:05.9]} 43... h4 {[%clk 0:00:04.8]} 44. Rf8
{[%clk 0:00:05.3]} 44... Kh5 {[%clk 0:00:05.7]} 45. Rh8+ {[%clk 0:00:04.9]}
45... Kg4 {[%clk 0:00:06.6]} 46. Qe4# {[%clk 0:00:04.3]} 1-0

[Event "*** Titled Tuesday Blitz"]
[Site "Chess.com"]
[Date "2021.02.09"]
[Round "11"]
[White "chessdjw"]
[Black "platy3"]
[Result "0-1"]
[WhiteElo "2656"]
[BlackElo "2849"]
[TimeControl "180+1"]
[EndTime "12:08:10 PST"]
[Termination "platy3 won on time"]

1. c4 {[%clk 0:03:00.9]} 1... Nf6 {[%clk 0:02:49.6]} 2. Nc3 {[%clk 0:02:59.2]}
2... e6 {[%clk 0:02:29.4]} 3. e4 {[%clk 0:02:57.2]} 3... d5 {[%clk 0:02:28.3]}
4. cxd5 {[%clk 0:02:58.1]} 4... exd5 {[%clk 0:02:28.7]} 5. e5 {[%clk 0:02:58.6]}
5... Ne4 {[%clk 0:02:29.1]} 6. Nf3 {[%clk 0:02:59.1]} 6... Be7 {[%clk
0:02:29.5]} 7. d4 {[%clk 0:02:55.7]} 7... O-O {[%clk 0:02:28.4]} 8. Bd3 {[%clk
0:02:56.1]} 8... Bf5 {[%clk 0:02:27.1]} 9. O-O {[%clk 0:02:50.4]} 9... c5 {[%clk
0:02:27.1]} 10. Re1 {[%clk 0:02:41.6]} 10... Nc6 {[%clk 0:02:19.7]} 11. Nxe4
{[%clk 0:02:28.6]} 11... dxe4 {[%clk 0:02:19.3]} 12. Bxe4 {[%clk 0:02:29.5]}
12... Bxe4 {[%clk 0:02:19.8]} 13. Rxe4 {[%clk 0:02:30.1]} 13... cxd4 {[%clk
0:02:20.6]} 14. a3 {[%clk 0:01:47.8]} 14... Qd7 {[%clk 0:02:09.9]} 15. Qd3
{[%clk 0:01:46.3]} 15... Rad8 {[%clk 0:02:00.4]} 16. Bd2 {[%clk 0:01:04]} 16...
Qf5 {[%clk 0:01:45.6]} 17. Rae1 {[%clk 0:01:02.9]} 17... a6 {[%clk 0:01:11.5]}
18. h3 {[%clk 0:01:02.4]} 18... Rd7 {[%clk 0:01:07.4]} 19. Bh6 {[%clk
0:00:57.4]} 19... gxh6 {[%clk 0:00:37.5]} 20. Rg4+ {[%clk 0:00:56.8]} 20... Qg6
{[%clk 0:00:38.4]} 21. e6 {[%clk 0:00:47.8]} 21... Rd6 {[%clk 0:00:36.9]} 22.
Rxg6+ {[%clk 0:00:38.9]} 22... hxg6 {[%clk 0:00:36.8]} 23. h4 {[%clk 0:00:32.2]}
23... Kg7 {[%clk 0:00:34.3]} 24. h5 {[%clk 0:00:32.6]} 24... g5 {[%clk
0:00:34.2]} 25. exf7 {[%clk 0:00:29.8]} 25... Rxf7 {[%clk 0:00:34.3]} 26. Ne5
{[%clk 0:00:30]} 26... Nxe5 {[%clk 0:00:32.4]} 27. Rxe5 {[%clk 0:00:30.9]} 27...
Kf8 {[%clk 0:00:21.5]} 28. Kf1 {[%clk 0:00:20.5]} 28... Bf6 {[%clk 0:00:19.4]}
29. Rf5 {[%clk 0:00:19.1]} 29... Re7 {[%clk 0:00:13.8]} 30. g3 {[%clk 0:00:19]}
30... Ke8 {[%clk 0:00:07.9]} 31. Rf3 {[%clk 0:00:19.4]} 31... Be5 {[%clk
0:00:06.6]} 32. Qf5 {[%clk 0:00:18.1]} 32... Kd8 {[%clk 0:00:06.3]} 33. Qf8+
{[%clk 0:00:17.4]} 33... Kd7 {[%clk 0:00:06.5]} 34. Qf5+ {[%clk 0:00:17.1]}
34... Kc7 {[%clk 0:00:06.2]} 35. Kg2 {[%clk 0:00:16.3]} 35... Rde6 {[%clk
0:00:03.3]} 36. Rd3 {[%clk 0:00:15]} 36... Kb8 {[%clk 0:00:03.5]} 37. Qf8+
{[%clk 0:00:14.5]} 37... Ka7 {[%clk 0:00:03.7]} 38. Rf3 {[%clk 0:00:12.3]} 38...
Rc7 {[%clk 0:00:02.6]} 39. Qd8 {[%clk 0:00:11]} 39... Rc5 {[%clk 0:00:02]} 40.
Rf8 {[%clk 0:00:11.3]} 40... Rd6 {[%clk 0:00:02]} 41. Qa8+ {[%clk 0:00:09.2]}
41... Kb6 {[%clk 0:00:02.7]} 42. Rf7 {[%clk 0:00:08.7]} 42... Rc7 {[%clk
0:00:02.7]} 43. Rxc7 {[%clk 0:00:07.1]} 43... Kxc7 {[%clk 0:00:03.6]} 44. Kf1
{[%clk 0:00:05.3]} 44... d3 {[%clk 0:00:04.2]} 45. Ke1 {[%clk 0:00:05.5]} 45...
Bxb2 {[%clk 0:00:04.9]} 46. a4 {[%clk 0:00:05]} 46... Bc3+ {[%clk 0:00:05.1]}
47. Kd1 {[%clk 0:00:05.3]} 47... Re6 {[%clk 0:00:05.7]} 0-1

[Event "*** Titled Tuesday Blitz"]
[Site "Chess.com"]
[Date "2021.02.09"]
[Round "11"]
[White "ehrenfeld"]
[Black "Jungle_Jaguar"]
[Result "1-0"]
[WhiteElo "2534"]
[BlackElo "2629"]
[TimeControl "180+1"]
[EndTime "12:08:11 PST"]
[Termination "ehrenfeld won by checkmate"]

1. e4 {[%clk 0:03:00.9]} 1... e5 {[%clk 0:02:57.3]} 2. Nc3 {[%clk 0:03:00.5]}
2... Nf6 {[%clk 0:02:53.7]} 3. f4 {[%clk 0:03:00.3]} 3... d6 {[%clk 0:02:51.8]}
4. Nf3 {[%clk 0:02:58.3]} 4... Nc6 {[%clk 0:02:48]} 5. Bc4 {[%clk 0:02:50.2]}
5... Bg4 {[%clk 0:02:43.9]} 6. O-O {[%clk 0:02:45.5]} 6... Nd4 {[%clk
0:02:41.9]} 7. fxe5 {[%clk 0:02:42]} 7... dxe5 {[%clk 0:02:40.3]} 8. Bxf7+
{[%clk 0:02:37.5]} 8... Ke7 {[%clk 0:02:26.8]} 9. Bb3 {[%clk 0:02:28.3]} 9...
Nxf3+ {[%clk 0:02:25]} 10. gxf3 {[%clk 0:02:27.6]} 10... Bh3 {[%clk 0:02:25]}
11. Re1 {[%clk 0:02:08.5]} 11... Ke8 {[%clk 0:02:09.1]} 12. d3 {[%clk
0:02:01.1]} 12... Bc5+ {[%clk 0:02:01.3]} 13. Be3 {[%clk 0:01:50.1]} 13... Bxe3+
{[%clk 0:02:00.8]} 14. Rxe3 {[%clk 0:01:50.2]} 14... Nh5 {[%clk 0:02:01.3]} 15.
f4 {[%clk 0:01:37.9]} 15... Nxf4 {[%clk 0:01:57.8]} 16. Rg3 {[%clk 0:01:35.1]}
16... Qd4+ {[%clk 0:01:15]} 17. Kh1 {[%clk 0:01:33.7]} 17... g6 {[%clk
0:01:15.2]} 18. Nd5 {[%clk 0:01:21.8]} 18... Nxd5 {[%clk 0:01:06.5]} 19. Bxd5
{[%clk 0:01:19.1]} 19... Bd7 {[%clk 0:01:02.2]} 20. c3 {[%clk 0:01:03.6]} 20...
Qb6 {[%clk 0:01:02.2]} 21. Qd2 {[%clk 0:00:43.9]} 21... c6 {[%clk 0:00:56.1]}
22. Qg5 {[%clk 0:00:37.8]} 22... Qc7 {[%clk 0:00:41.7]} 23. Bb3 {[%clk
0:00:36.3]} 23... Rf8 {[%clk 0:00:35]} 24. Rgg1 {[%clk 0:00:36]} 24... Qd6
{[%clk 0:00:16.4]} 25. Raf1 {[%clk 0:00:34.5]} 25... Rf4 {[%clk 0:00:14.2]} 26.
d4 {[%clk 0:00:29.4]} 26... Qf8 {[%clk 0:00:10.1]} 27. Qxe5+ {[%clk 0:00:27.5]}
27... Qe7 {[%clk 0:00:09.8]} 28. Qxe7+ {[%clk 0:00:27.3]} 28... Kxe7 {[%clk
0:00:10.3]} 29. Rxf4 {[%clk 0:00:27.5]} 29... c5 {[%clk 0:00:11]} 30. Rf7+
{[%clk 0:00:26.8]} 30... Kd6 {[%clk 0:00:11.4]} 31. Rxh7 {[%clk 0:00:26.8]}
31... cxd4 {[%clk 0:00:11.5]} 32. cxd4 {[%clk 0:00:26.4]} 32... Re8 {[%clk
0:00:12.2]} 33. Rxg6+ {[%clk 0:00:26.1]} 33... Kc7 {[%clk 0:00:12.2]} 34. e5
{[%clk 0:00:22.8]} 34... Kc8 {[%clk 0:00:10.2]} 35. Rxd7 {[%clk 0:00:19.1]}
35... Kxd7 {[%clk 0:00:10.3]} 36. Ba4+ {[%clk 0:00:19.2]} 36... b5 {[%clk
0:00:10.3]} 37. Bxb5+ {[%clk 0:00:19.1]} 37... Ke7 {[%clk 0:00:10.9]} 38. Bxe8
{[%clk 0:00:19]} 38... Kxe8 {[%clk 0:00:11.8]} 39. d5 {[%clk 0:00:18.5]} 39...
a5 {[%clk 0:00:10.3]} 40. Rg7 {[%clk 0:00:16.8]} 40... a4 {[%clk 0:00:10.4]} 41.
e6 {[%clk 0:00:17]} 41... Kf8 {[%clk 0:00:10.8]} 42. Rb7 {[%clk 0:00:15.9]}
42... a3 {[%clk 0:00:11.3]} 43. b3 {[%clk 0:00:15.2]} 43... Kg8 {[%clk
0:00:08.4]} 44. d6 {[%clk 0:00:14.6]} 44... Kh8 {[%clk 0:00:07.8]} 45. d7 {[%clk
0:00:14.5]} 45... Kg7 {[%clk 0:00:06.5]} 46. d8=Q+ {[%clk 0:00:14.4]} 46... Kg6
{[%clk 0:00:07.1]} 47. Qf8 {[%clk 0:00:12.4]} 47... Kh5 {[%clk 0:00:06.7]} 48.
Rg7 {[%clk 0:00:11.5]} 48... Kh4 {[%clk 0:00:06.7]} 49. Qh8# {[%clk 0:00:11.3]}
1-0

[Event "*** Titled Tuesday Blitz"]
[Site "Chess.com"]
[Date "2021.02.09"]
[Round "11"]
[White "Margency"]
[Black "Sergey85Rodchenkov"]
[Result "1-0"]
[WhiteElo "2641"]
[BlackElo "2489"]
[TimeControl "180+1"]
[EndTime "12:08:12 PST"]
[Termination "Margency won by resignation"]

1. e4 {[%clk 0:03:00.9]} 1... c5 {[%clk 0:02:59.5]} 2. Nf3 {[%clk 0:03:01.1]}
2... d6 {[%clk 0:02:59.6]} 3. d4 {[%clk 0:03:01.7]} 3... cxd4 {[%clk 0:02:59.9]}
4. Nxd4 {[%clk 0:03:02.6]} 4... Nf6 {[%clk 0:03:00.2]} 5. Nc3 {[%clk 0:03:03.2]}
5... a6 {[%clk 0:03:00.5]} 6. Be3 {[%clk 0:03:03.6]} 6... e5 {[%clk 0:02:59.9]}
7. Nb3 {[%clk 0:03:04.2]} 7... Be7 {[%clk 0:02:59]} 8. f3 {[%clk 0:03:04.2]}
8... Qc7 {[%clk 0:02:59]} 9. Qd2 {[%clk 0:03:04.8]} 9... Be6 {[%clk 0:02:58.7]}
10. O-O-O {[%clk 0:03:05]} 10... b5 {[%clk 0:02:59.2]} 11. g4 {[%clk 0:03:05.3]}
11... O-O {[%clk 0:02:58]} 12. g5 {[%clk 0:03:05.5]} 12... b4 {[%clk 0:02:58.6]}
13. Ne2 {[%clk 0:03:04]} 13... Nfd7 {[%clk 0:02:58.3]} 14. Kb1 {[%clk
0:03:04.1]} 14... a5 {[%clk 0:02:57.3]} 15. f4 {[%clk 0:03:02.1]} 15... exf4
{[%clk 0:02:46.4]} 16. Nxf4 {[%clk 0:03:00]} 16... Bxb3 {[%clk 0:02:46.3]} 17.
cxb3 {[%clk 0:02:53.8]} 17... Ne5 {[%clk 0:02:42.6]} 18. Nd5 {[%clk 0:02:52]}
18... Qd8 {[%clk 0:02:41.8]} 19. h4 {[%clk 0:02:50]} 19... Nbd7 {[%clk
0:02:39.1]} 20. Nxe7+ {[%clk 0:02:36.9]} 20... Qxe7 {[%clk 0:02:39]} 21. Qxd6
{[%clk 0:02:37.4]} 21... Qxd6 {[%clk 0:02:35]} 22. Rxd6 {[%clk 0:02:37.4]} 22...
Rac8 {[%clk 0:02:04.1]} 23. Bb5 {[%clk 0:02:33.9]} 23... Rc7 {[%clk 0:02:03.3]}
24. Rhd1 {[%clk 0:02:32.5]} 24... Ng4 {[%clk 0:01:45.6]} 25. Bg1 {[%clk
0:02:14.1]} 25... Nde5 {[%clk 0:01:44.7]} 26. Bb6 {[%clk 0:02:10.7]} 26... Rb7
{[%clk 0:01:39.7]} 27. Be2 {[%clk 0:02:02.1]} 27... g6 {[%clk 0:01:15.3]} 28.
Bxa5 {[%clk 0:01:58.3]} 28... Nf2 {[%clk 0:00:47.3]} 29. R1d4 {[%clk 0:01:53.1]}
29... Rc8 {[%clk 0:00:45.3]} 30. Rd8+ {[%clk 0:01:51.4]} 30... Rxd8 {[%clk
0:00:44.9]} 31. Rxd8+ {[%clk 0:01:51.3]} 31... Kg7 {[%clk 0:00:45.7]} 32. Rd5
{[%clk 0:01:23.3]} 32... Nc6 {[%clk 0:00:41.3]} 33. Bc4 {[%clk 0:00:58.9]} 33...
Nxe4 {[%clk 0:00:36.2]} 34. Kc2 {[%clk 0:00:57.3]} 34... Nxa5 {[%clk 0:00:22.2]}
35. Rxa5 {[%clk 0:00:57]} 35... Rd7 {[%clk 0:00:22.8]} 36. Rd5 {[%clk
0:00:52.6]} 36... Re7 {[%clk 0:00:21.8]} 37. a3 {[%clk 0:00:48.6]} 37... Ng3
{[%clk 0:00:14.8]} 38. Bd3 {[%clk 0:00:43.5]} 38... Rc7+ {[%clk 0:00:11.3]} 39.
Kd2 {[%clk 0:00:42.5]} 39... Nh5 {[%clk 0:00:11.2]} 40. Rd4 {[%clk 0:00:40.8]}
40... Ng3 {[%clk 0:00:08.7]} 41. Rxb4 {[%clk 0:00:39.1]} 41... h6 {[%clk
0:00:09.1]} 42. Rg4 {[%clk 0:00:34.8]} 42... Nh5 {[%clk 0:00:08.4]} 43. b4
{[%clk 0:00:32.6]} 43... f5 {[%clk 0:00:08.6]} 44. gxf6+ {[%clk 0:00:31.9]}
44... Nxf6 {[%clk 0:00:08.2]} 45. Rxg6+ {[%clk 0:00:32.2]} 45... Kf7 {[%clk
0:00:08.1]} 46. Rxh6 {[%clk 0:00:31.6]} 46... Ke6 {[%clk 0:00:07.8]} 47. b5
{[%clk 0:00:29.7]} 47... Ke5 {[%clk 0:00:07.9]} 48. b6 {[%clk 0:00:28.6]} 48...
Rc6 {[%clk 0:00:07.7]} 49. b7 {[%clk 0:00:26.7]} 49... Rb6 {[%clk 0:00:08]} 50.
Ba6 {[%clk 0:00:26.8]} 50... Rxb2+ {[%clk 0:00:03.3]} 51. Kc3 {[%clk 0:00:25.3]}
51... Rb6 {[%clk 0:00:04.2]} 52. Rh8 {[%clk 0:00:25.2]} 52... Nd5+ {[%clk
0:00:04.2]} 53. Kd2 {[%clk 0:00:24.7]} 53... Nc7 {[%clk 0:00:04.7]} 54. b8=Q
{[%clk 0:00:24.3]} 54... Rxb8 {[%clk 0:00:05.1]} 55. Rxb8 {[%clk 0:00:24.9]}
55... Nxa6 {[%clk 0:00:06]} 56. Rb6 {[%clk 0:00:24.7]} 1-0

[Event "*** Titled Tuesday Blitz"]
[Site "Chess.com"]
[Date "2021.02.09"]
[Round "11"]
[White "bazar-wokzal"]
[Black "Vanina1989"]
[Result "0-1"]
[WhiteElo "2559"]
[BlackElo "2733"]
[TimeControl "180+1"]
[EndTime "12:08:16 PST"]
[Termination "Vanina1989 won by resignation"]

1. e4 {[%clk 0:03:00.9]} 1... c6 {[%clk 0:02:59.2]} 2. d4 {[%clk 0:03:00.8]}
2... d5 {[%clk 0:02:59.2]} 3. e5 {[%clk 0:03:01.4]} 3... Bf5 {[%clk 0:02:58.6]}
4. Nc3 {[%clk 0:03:01.8]} 4... e6 {[%clk 0:02:58.6]} 5. g4 {[%clk 0:03:02.3]}
5... Bg6 {[%clk 0:02:58.5]} 6. Nge2 {[%clk 0:03:03]} 6... Bb4 {[%clk 0:02:53.2]}
7. Be3 {[%clk 0:03:01.7]} 7... Be4 {[%clk 0:02:51.1]} 8. Rg1 {[%clk 0:02:59.5]}
8... Ne7 {[%clk 0:02:44.2]} 9. Nf4 {[%clk 0:02:53]} 9... Ng6 {[%clk 0:02:42.4]}
10. Nh5 {[%clk 0:02:51.5]} 10... O-O {[%clk 0:02:42.2]} 11. f3 {[%clk
0:02:48.8]} 11... c5 {[%clk 0:02:28.7]} 12. fxe4 {[%clk 0:02:42.9]} 12... Nc6
{[%clk 0:02:25.3]} 13. exd5 {[%clk 0:02:40.1]} 13... exd5 {[%clk 0:02:14.3]} 14.
a3 {[%clk 0:02:35.4]} 14... cxd4 {[%clk 0:02:07.9]} 15. Bxd4 {[%clk 0:02:29.7]}
15... Nxd4 {[%clk 0:02:07]} 16. Qxd4 {[%clk 0:02:17]} 16... Ba5 {[%clk
0:01:55.7]} 17. O-O-O {[%clk 0:02:15.2]} 17... Bb6 {[%clk 0:01:52.6]} 18. Qb4
{[%clk 0:01:45.6]} 18... Bxg1 {[%clk 0:01:48.5]} 19. Nxd5 {[%clk 0:01:46]} 19...
Qg5+ {[%clk 0:01:48]} 20. Kb1 {[%clk 0:01:44.9]} 20... Qxe5 {[%clk 0:01:44.9]}
21. Bc4 {[%clk 0:01:38.7]} 21... Bxh2 {[%clk 0:01:37.3]} 22. Bb3 {[%clk
0:01:31.6]} 22... Kh8 {[%clk 0:01:35]} 23. Qxb7 {[%clk 0:01:23.7]} 23... a5
{[%clk 0:01:34.2]} 24. a4 {[%clk 0:01:22.9]} 24... Rab8 {[%clk 0:01:33.4]} 25.
Qa6 {[%clk 0:01:18.6]} 25... Qe4 {[%clk 0:01:28.7]} 26. Qc4 {[%clk 0:01:09.8]}
26... Qxc4 {[%clk 0:01:19.3]} 27. Bxc4 {[%clk 0:01:10.2]} 27... Ne5 {[%clk
0:01:19.4]} 28. Be2 {[%clk 0:01:08.5]} 28... Rfd8 {[%clk 0:01:17.9]} 29. c4
{[%clk 0:01:04.5]} 29... Nc6 {[%clk 0:01:15.3]} 30. Rf1 {[%clk 0:00:58.7]} 30...
Be5 {[%clk 0:01:14.6]} 31. Bd3 {[%clk 0:00:44.2]} 31... Rxb2+ {[%clk 0:01:13.2]}
32. Kc1 {[%clk 0:00:44.7]} 32... Rb7 {[%clk 0:01:00.6]} 33. g5 {[%clk 0:00:41]}
33... Nb4 {[%clk 0:00:54.5]} 34. Be4 {[%clk 0:00:40.6]} 34... Nxd5 {[%clk
0:00:51.8]} 35. Bxd5 {[%clk 0:00:38.3]} 35... Rc7 {[%clk 0:00:52]} 36. Kd2
{[%clk 0:00:36.2]} 36... Kg8 {[%clk 0:00:39.9]} 37. Ke3 {[%clk 0:00:36.4]} 37...
Re8 {[%clk 0:00:39.3]} 38. Kd3 {[%clk 0:00:35.4]} 38... Rb8 {[%clk 0:00:39.2]}
39. Ke4 {[%clk 0:00:35]} 39... Bd6 {[%clk 0:00:39.5]} 40. Nf4 {[%clk 0:00:33.5]}
40... Re8+ {[%clk 0:00:38.2]} 41. Kf3 {[%clk 0:00:29.6]} 41... Bc5 {[%clk
0:00:35.8]} 42. Kg4 {[%clk 0:00:27.2]} 42... Rce7 {[%clk 0:00:28.5]} 43. Rb1
{[%clk 0:00:24.9]} 43... g6 {[%clk 0:00:26.5]} 44. Rb5 {[%clk 0:00:23.9]} 44...
Bb4 {[%clk 0:00:26.6]} 45. c5 {[%clk 0:00:24.3]} 45... Re1 {[%clk 0:00:25.9]}
46. c6 {[%clk 0:00:24]} 46... Rg1+ {[%clk 0:00:25.9]} 47. Kf3 {[%clk 0:00:23.6]}
47... Rf1+ {[%clk 0:00:25.5]} 48. Kg4 {[%clk 0:00:23.4]} 48... Bd6 {[%clk
0:00:25.7]} 49. Nh3 {[%clk 0:00:17.2]} 49... Re3 {[%clk 0:00:24.2]} 50. Rb7
{[%clk 0:00:15.8]} 50... Rg3+ {[%clk 0:00:23.7]} 51. Kh4 {[%clk 0:00:16.3]}
51... Rd3 {[%clk 0:00:21.9]} 52. c7 {[%clk 0:00:09]} 52... Rd4+ {[%clk
0:00:20.3]} 53. Nf4 {[%clk 0:00:09.4]} 53... Rfxf4+ {[%clk 0:00:18.2]} 54. Kh3
{[%clk 0:00:10.3]} 54... Bxc7 {[%clk 0:00:18]} 55. Rxc7 {[%clk 0:00:09.1]} 55...
Rxd5 {[%clk 0:00:18.3]} 0-1